bitfinex-derivatives/quotes_BNBF0:USTF0_20250326
["timestamp","ask_amount","ask_price","bid_price","bid_amount"]
[1743028168052,1.548,615.83,615.43,0.26373613]
[1743028168257,1.548,615.83,615.44,0.26373613]
[1743028168455,1.548,615.83,615.43,0.26373613]
[1743028168655,1.548,615.83,615.44,0.26373613]
[1743028168855,1.548,615.83,615.43,0.26373613]
[1743028170563,1.548,615.83,615.42,0.32498131]
[1743028170764,1.548,615.83,615.43,0.26372278]
[1743028176769,1.548,615.83,615.42,0.32498131]
[1743028176969,1.548,615.83,615.43,0.26372134]
[1743028179871,1.548,615.83,615.44,0.32497075]
[1743028180072,1.548,615.83,615.45,0.26369844]
[1743028180670,1.548,615.83,615.46,0.32496019]
[1743028180873,1.548,615.83,615.47,0.26369844]
[1743028181071,1.548,615.83,615.47,0.58865335]
[1743028181277,1.548,615.83,615.48,0.26369844]
[1743028186380,1.548,615.83,615.49,0.263702]
[1743028186381,2.133,615.83,615.49,0.263702]
[1743028186575,2.133,615.83,615.5,0.263702]
[1743028186780,2.133,615.83,615.51,0.263702]
[1743028186980,2.133,615.83,615.52,0.263702]
[1743028187176,2.133,615.83,615.48,0.54625095]
[1743028187378,2.133,615.83,615.49,0.263702]
[1743028187977,2.133,615.83,615.5,0.26370177]
[1743028188283,2.133,615.83,615.51,0.26370177]
[1743028188481,2.133,615.83,615.52,0.26370177]
[1743028188681,2.133,615.83,615.49,0.26370177]
[1743028188883,2.133,615.83,615.5,0.26370177]
[1743028189079,2.133,615.83,615.48,0.26370177]
[1743028189279,2.133,615.83,615.49,0.26370177]
[1743028189481,2.133,615.83,615.48,0.26370177]
[1743028189688,2.133,615.83,615.49,0.26370177]
[1743028189887,2.133,615.83,615.48,0.26370177]
[1743028190083,2.133,615.83,615.49,0.26370177]
[1743028190688,2.133,615.83,615.49,0.58864612]
[1743028190889,2.133,615.83,615.5,0.26367204]
[1743028191982,2.133,615.83,615.51,0.32493379]
[1743028192185,2.133,615.83,615.52,0.26367204]
[1743028192381,2.133,615.83,615.53,0.32492323]
[1743028192787,2.133,615.83,615.54,0.26366995]
[1743028193184,1.45,615.83,615.54,0.26366995]
[1743028193585,1.45,615.83,615.54,0.5885879]
[1743028193786,1.45,615.83,615.55,0.26366995]
[1743028193982,1.45,615.83,615.56,0.3249074]
[1743028194388,1.45,615.83,615.57,0.26365086]
[1743028194585,1.45,615.83,615.57,0.58855298]
[1743028194789,1.45,615.83,615.58,0.26365086]
[1743028203298,1.45,615.83,615.57,0.32490212]
[1743028203499,1.45,615.83,615.58,0.26364628]
[1743028208303,1.45,615.83,615.57,0.60742354]
[1743028208304,1.45,615.83,615.59,0.26364675]
[1743028208504,1.45,615.83,615.6,0.26364675]
[1743028208807,0.585,615.83,615.61,0.26364675]
[1743028209105,0.585,615.83,615.62,0.26364675]
[1743028209304,0.585,615.83,615.58,0.26364675]
[1743028209507,0.585,615.83,615.59,0.26364675]
[1743028209803,0.585,615.83,615.6,0.26363795]
[1743028210105,0.585,615.83,615.61,0.26363795]
[1743028210301,0.585,615.83,615.62,0.26363795]
[1743028210507,0.845,615.88,615.63,0.26363795]
[1743028210807,0.845,615.88,615.64,0.26363795]
[1743028211006,1.641,615.88,615.59,0.54614446]
[1743028211208,1.641,615.88,615.6,0.26363795]
[1743028211407,1.641,615.88,615.59,0.28250651]
[1743028211408,1.641,615.88,615.61,0.26363642]
[1743028211704,1.641,615.88,615.62,0.26363642]
[1743028211907,1.641,615.88,615.63,0.26363642]
[1743028212107,1.641,615.88,615.64,0.26363642]
[1743028212308,1.641,615.88,615.65,0.26363642]
[1743028212609,1.641,615.88,615.66,0.26363642]
[1743028212908,1.641,615.88,615.67,0.32484935]
[1743028213105,1.641,615.88,615.68,0.26360927]
[1743028213507,1.641,615.88,615.69,0.32483879]
[1743028213707,1.641,615.88,615.7,0.26360927]
[1743028213907,1.641,615.88,615.7,0.58844279]
[1743028214107,1.641,615.88,615.71,0.26360927]
[1743028214516,1.641,615.88,615.71,0.32482824]
[1743028217114,1.641,615.88,615.78,0.2635805]
[1743028217411,1.641,615.88,615.79,0.58829902]
[1743028217609,1.641,615.88,615.8,0.58829375]
[1743028217805,0.06364211,615.88,615.81,0.58828849]
[1743028218009,0.663,615.95,615.82,0.263513]
[1743028218908,0.663,615.95,615.83,0.32476495]
[1743028219214,0.663,615.95,615.84,0.263513]
[1743028219515,0.663,615.95,615.85,0.58826149]
[1743028219714,0.663,615.95,615.86,0.58825622]
[1743028219904,0.663,615.95,615.87,0.58825094]
[1743028220109,0.663,615.95,615.88,0.58824567]
[1743028220411,0.663,615.95,615.89,0.5882404]
[1743028220610,0.663,615.95,615.9,0.58823513]
[1743028220812,0.663,615.95,615.91,0.58822985]
[1743028221011,0.663,615.95,615.92,0.26350709]
[1743028222607,0.663,615.95,615.93,0.26354958]
[1743028222808,0.663,615.95,615.94,0.26354958]
[1743028223012,0.663,615.95,615.92,0.26354958]
[1743028223309,0.663,615.95,615.93,0.26354958]
[1743028223513,0.663,615.95,615.92,0.26354958]
[1743028223713,0.663,615.95,615.93,0.26354958]
[1743028224014,0.663,615.95,615.94,0.26354958]
[1743028224211,0.663,615.95,615.94,0.26355259]
[1743028224917,0.663,615.95,615.92,0.26355259]
[1743028225210,0.663,615.95,615.93,0.26355259]
[1743028225418,0.663,615.95,615.94,0.26355259]
[1743028225613,0.663,615.95,615.91,0.32472276]
[1743028225810,0.663,615.95,615.92,0.26356151]
[1743028226110,0.731,616.66,615.92,0.26356151]
[1743028226317,0.99807495,616.65,615.92,0.26356151]
[1743028226817,0.99807495,616.64,615.92,0.26356151]
[1743028227116,0.99807495,616.63,615.92,0.26356151]
[1743028227916,0.99807495,616.65,615.92,0.26356151]
[1743028228617,0.99807495,616.64,615.92,0.26356151]
[1743028228818,0.99807495,616.64,615.91,0.32472276]
[1743028229013,0.99807495,616.65,615.92,0.2635765]
[1743028229211,0.635,616.63,615.92,0.2635765]
[1743028232117,0.635,616.63,615.93,0.26352808]
[1743028232318,0.635,616.63,615.92,0.26352808]
[1743028232512,0.635,616.63,615.93,0.26352808]
[1743028232710,0.635,616.63,615.91,0.32472276]
[1743028232711,0.635,616.63,615.94,0.26352808]
[1743028232920,0.635,616.63,615.92,0.26352808]
[1743028233218,0.635,616.63,615.93,0.26352808]
[1743028233418,0.635,616.63,615.94,0.32470695]
[1743028233613,0.635,616.63,615.95,0.26347154]
[1743028234215,0.635,616.63,615.95,0.58817322]
[1743028234412,0.635,616.63,615.96,0.26347154]
[1743028235313,0.635,616.63,615.97,0.26346678]
[1743028235516,0.635,616.63,615.98,0.26346678]
[1743028235821,0.635,616.63,615.99,0.26346678]
[1743028236014,0.635,616.63,615.96,0.26346678]
[1743028236215,0.635,616.63,615.97,0.26346678]
[1743028236413,0.635,616.63,615.96,0.26346678]
[1743028236614,0.635,616.63,615.97,0.26346678]
[1743028236816,0.635,616.63,615.98,0.2634692]
[1743028237022,0.635,616.63,615.99,0.2634692]
[1743028237216,0.635,616.63,615.96,0.2634692]
[1743028239216,0.635,616.63,615.96,0.5881656]
[1743028239416,0.635,616.63,615.97,0.2634692]
[1743028244021,0.635,616.63,615.98,0.32468586]
[1743028244220,0.635,616.63,615.99,0.2634692]
[1743028251722,0.846,616.62,615.99,0.2634692]
[1743028252328,0.846,616.62,615.98,0.32468586]
[1743028255737,0.846,616.62,615.99,0.26357141]
[1743028255937,0.846,616.62,615.98,0.32468586]
[1743028256534,0.846,616.62,615.99,0.263557]
[1743028260543,0.846,616.62,616.0,0.26355891]
[1743028260742,0.846,616.62,615.99,0.26355891]
[1743028260943,0.846,616.62,616.0,0.26355891]
[1743028261243,0.846,616.62,616.01,0.26355891]
[1743028261445,0.846,616.62,616.02,0.26355891]
[1743028261745,0.846,616.62,616.03,0.26355652]
[1743028261945,0.846,616.62,616.04,0.26355652]
[1743028262144,0.846,616.62,615.99,0.26355652]
[1743028262338,0.846,616.62,616.0,0.26355652]
[1743028262542,0.846,616.62,616.01,0.26355652]
[1743028262738,0.846,616.62,615.99,0.26355652]
[1743028262939,0.846,616.62,616.0,0.26355652]
[1743028263139,0.846,616.62,615.99,0.26355652]
[1743028263346,0.846,616.62,616.0,0.26355652]
[1743028263640,0.846,616.62,615.61,1.21217594]
[1743028263845,1.01665905,616.61,615.62,0.26360668]
[1743028264045,1.01665905,616.61,615.68,0.28242283]
[1743028264248,1.01665905,616.6,615.68,0.28242283]
[1743028264942,2.09501716,616.62,615.68,0.28242283]
[1743028264943,1.01665905,616.59,615.68,0.28242283]
[1743028265546,1.01665905,616.58,615.68,0.28242283]
[1743028266147,1.01665905,616.57,614.99,1.21217594]
[1743028266349,1.01665905,616.57,615.01,0.32519796]
[1743028266546,1.01665905,616.56,615.61,0.2825111]
[1743028266951,1.01665905,616.56,615.62,0.26365557]
[1743028267253,1.01665905,616.55,615.63,0.26365557]
[1743028267452,1.01665905,616.55,615.02,0.26365557]
[1743028267653,1.01665905,616.54,615.04,0.3251821]
[1743028268052,1.01665905,616.53,615.05,0.26365596]
[1743028268253,1.01665905,616.53,615.03,0.28251225]
[1743028268254,1.01665905,616.53,615.07,0.32516624]
[1743028268454,1.01665905,616.53,615.08,0.26365596]
[1743028268654,1.01665905,616.52,615.1,0.32515038]
[1743028268853,1.01665905,616.52,615.11,0.26365596]
[1743028269149,0.577,616.51,615.13,0.32513452]
[1743028269355,0.577,616.51,615.14,0.26365596]
[1743028269356,1.59365905,616.51,615.14,0.26365596]
[1743028269553,1.87616442,616.51,615.16,0.32511866]
[1743028269754,1.87616442,616.51,615.17,0.26365596]
[1743028269951,1.01665905,616.5,615.18,0.26365596]
[1743028270153,1.01665905,616.5,615.2,0.32509752]
[1743028270348,1.87765905,616.49,615.21,0.26365596]
[1743028270553,1.87765905,616.49,615.23,0.32508167]
[1743028270753,1.01665905,616.48,615.24,0.26365596]
[1743028270950,1.01665905,616.48,615.26,0.32506582]
[1743028271157,1.01665905,616.48,615.27,0.26365596]
[1743028271361,1.01665905,616.48,615.29,0.32504997]
[1743028271552,0.861,616.49,615.3,0.26365596]
[1743028271956,0.861,616.49,615.32,0.32503412]
[1743028272158,0.861,616.49,615.33,0.26365596]
[1743028272359,0.861,616.49,615.34,0.32502356]
[1743028272858,0.861,616.49,615.35,0.26364363]
[1743028273058,0.861,616.49,615.36,0.325013]
[1743028273259,0.861,616.49,615.37,0.26364363]
[1743028273558,0.861,616.49,615.38,0.32500243]
[1743028273751,0.861,616.49,615.39,0.26364363]
[1743028273953,0.861,616.49,615.4,0.32499187]
[1743028274156,0.28247785,616.48,615.41,0.26364363]
[1743028274457,0.28247785,616.48,615.42,0.32498131]
[1743028274758,0.28247785,616.48,615.43,0.26364363]
[1743028275055,0.28247785,616.48,615.44,0.32497075]
[1743028275259,0.28247785,616.48,615.45,0.26364363]
[1743028275956,0.861,616.49,615.45,0.26364363]
[1743028275957,0.861,616.49,615.46,0.32496019]
[1743028276258,0.861,616.49,615.47,0.26364363]
[1743028276457,0.861,616.49,615.48,0.32494963]
[1743028276656,0.861,616.49,615.49,0.26364363]
[1743028276857,0.861,616.49,615.5,0.32493907]
[1743028277052,0.28246524,616.48,615.51,0.26364363]
[1743028277258,0.28246524,616.48,615.51,0.58857742]
[1743028277458,0.28246524,616.48,615.51,0.32493379]
[1743028277656,0.28246524,616.48,615.52,0.2636488]
[1743028278856,0.861,616.49,615.52,0.2636488]
[1743028280157,0.2824618,616.48,615.52,0.2636488]
[1743028280659,0.2824618,616.48,615.51,0.32493379]
[1743028280959,0.2824618,616.48,615.52,0.26364383]
[1743028281858,0.861,616.49,615.52,0.26364383]
[1743028282258,0.2824618,616.47,615.52,0.26364383]
[1743028286362,0.2824618,616.47,615.52,1.47581977]
[1743028286556,0.2824618,616.47,615.53,0.26364383]
[1743028287963,0.861,616.49,615.53,0.26364383]
[1743028289266,0.28246065,616.48,615.53,0.26364383]
[1743028289462,0.28246065,616.48,615.52,0.26364383]
[1743028289664,0.28246065,616.48,615.53,0.26364383]
[1743028289966,0.28246065,616.48,615.54,0.26364383]
[1743028290167,0.28246065,616.48,615.52,0.26364383]
[1743028290367,0.28246065,616.48,615.53,0.26365372]
[1743028290568,0.28246065,616.48,615.52,0.26365372]
[1743028290764,0.28246065,616.48,615.53,0.26365372]
[1743028290966,0.861,616.49,615.54,0.26365372]
[1743028291167,0.2824618,616.48,615.52,0.26365372]
[1743028291469,0.2824618,616.48,615.53,0.26365372]
[1743028291768,0.751,616.47,615.51,0.32493379]
[1743028291970,0.751,616.47,615.52,0.26365467]
[1743028293866,1.76765905,616.47,615.52,0.26365467]
[1743028294367,0.751,616.47,615.52,0.26365467]
[1743028294868,1.01665905,616.46,615.52,0.26365467]
[1743028296668,1.01665905,616.46,615.53,0.26365438]
[1743028296967,1.01665905,616.46,615.54,0.26365438]
[1743028297165,0.558,616.45,615.52,0.26365438]
[1743028297367,0.558,616.45,615.51,0.32493379]
[1743028297567,0.558,616.45,615.52,0.26365383]
[1743028298268,0.558,616.45,615.51,0.60739903]
[1743028298568,0.558,616.45,615.52,0.2636501]
[1743028299268,1.57465905,616.45,615.52,0.2636501]
[1743028299867,0.558,616.45,615.52,0.2636501]
[1743028300067,1.35,616.45,615.52,0.2636501]
[1743028301067,1.35,616.45,615.6,1.21217594]
[1743028301567,1.35,616.45,615.61,0.2636483]
[1743028302462,1.35,616.45,615.63,1.21217594]
[1743028302666,1.35,616.45,615.64,0.2636483]
[1743028302867,1.01665905,616.44,615.64,0.2636483]
[1743028303469,1.01665905,616.43,615.64,0.2636483]
[1743028304073,1.01665905,616.44,615.64,0.2636483]
[1743028304470,1.01665905,616.43,615.64,0.2636483]
[1743028304674,1.01665905,616.43,615.64,1.47582424]
[1743028304870,1.01665905,616.42,615.65,0.2636483]
[1743028305271,0.736,616.41,615.65,0.2636483]
[1743028305469,1.75265905,616.41,615.65,0.2636483]
[1743028305968,1.01665905,616.4,615.65,0.2636483]
[1743028306472,0.736,616.41,615.65,0.2636483]
[1743028306977,0.736,616.41,615.66,0.2636483]
[1743028307166,0.736,616.41,615.59,0.2636483]
[1743028307369,0.736,616.41,615.6,0.32488628]
[1743028307570,1.02022627,616.4,615.61,0.2636483]
[1743028307875,1.02022627,616.4,615.62,0.32487573]
[1743028308072,0.736,616.41,615.63,0.2636483]
[1743028308273,0.736,616.41,615.64,0.32486518]
[1743028308475,0.736,616.41,615.65,0.2636483]
[1743028308674,0.736,616.41,615.66,0.32485462]
[1743028308877,0.736,616.41,615.67,0.2636483]
[1743028309073,0.736,616.41,615.68,0.32484407]
[1743028309274,0.736,616.41,615.69,0.2636483]
[1743028309479,0.736,616.41,615.69,0.58848709]
[1743028309676,0.736,616.41,615.7,0.2636483]
[1743028312177,0.736,616.41,615.71,0.32482824]
[1743028312378,0.736,616.41,615.72,0.2636483]
[1743028312578,0.736,616.41,615.73,0.32481769]
[1743028312776,0.736,616.41,615.74,0.2636483]
[1743028313179,0.736,616.41,615.75,0.32480714]
[1743028313381,0.736,616.41,615.76,0.2636483]
[1743028313680,0.675,616.4,615.77,0.32479659]
[1743028313880,0.675,616.4,615.78,0.2636483]
[1743028314077,0.675,616.4,615.78,0.32479132]
[1743028314274,0.675,616.4,615.79,0.26352859]
[1743028316076,0.675,616.4,615.8,0.32478077]
[1743028316282,0.675,616.4,615.81,0.26352859]
[1743028317481,0.675,616.4,615.82,0.32477022]
[1743028317681,0.675,616.4,615.83,0.26352859]
[1743028317877,0.675,616.4,615.84,0.32475967]
[1743028318082,0.675,616.4,615.85,0.26352859]
[1743028324787,0.675,616.4,615.86,0.26350805]
[1743028324987,0.675,616.4,615.87,0.26350805]
[1743028325188,0.675,616.4,615.88,0.26350805]
[1743028325385,0.675,616.4,615.89,0.26350805]
[1743028325586,0.584,616.39,615.85,0.26350805]
[1743028325786,0.584,616.39,615.84,0.32475967]
[1743028325787,0.584,616.39,615.86,0.26350805]
[1743028325987,0.584,616.39,615.87,0.26350805]
[1743028326193,0.584,616.39,615.88,0.26350805]
[1743028326592,0.584,616.39,615.89,0.26350805]
[1743028326792,0.584,616.39,615.9,0.26350805]
[1743028326991,0.584,616.39,615.85,0.26350805]
[1743028327297,0.584,616.39,615.86,0.26350805]
[1743028327587,0.584,616.39,615.87,0.26350805]
[1743028327794,0.584,616.39,615.88,0.26350805]
[1743028328092,0.584,616.39,615.89,0.26350997]
[1743028328295,0.584,616.39,615.85,0.26350997]
[1743028328588,0.584,616.39,615.86,0.26350997]
[1743028328792,0.584,616.39,615.87,0.26350997]
[1743028328991,0.584,616.39,615.85,0.26350997]
[1743028329293,0.584,616.39,615.86,0.26350997]
[1743028329493,0.584,616.39,615.84,0.60711948]
[1743028329692,0.584,616.39,615.85,0.26350708]
[1743028330791,0.861,616.38,615.85,0.26350708]
[1743028332690,0.861,616.38,615.84,0.60711948]
[1743028332894,0.861,616.38,615.85,0.26349057]
[1743028334395,0.861,616.38,615.86,0.26349691]
[1743028334592,0.861,616.38,615.85,0.26349691]
[1743028334793,0.861,616.38,615.86,0.26349691]
[1743028334998,0.861,616.38,615.85,0.26349691]
[1743028335197,0.861,616.38,615.86,0.26349691]
[1743028335399,0.861,616.38,615.87,0.26349691]
[1743028335597,0.861,616.38,615.85,0.26349691]
[1743028335797,0.861,616.38,615.86,0.26349691]
[1743028335998,0.861,616.38,615.87,0.26349688]
[1743028336300,0.861,616.38,615.88,0.26349688]
[1743028336499,0.861,616.38,615.89,0.26349688]
[1743028336699,0.861,616.38,615.9,0.26349688]
[1743028336998,0.861,616.38,615.91,0.26349688]
[1743028337199,0.861,616.38,615.85,0.26349688]
[1743028337399,0.861,616.38,615.86,0.26349688]
[1743028337703,0.861,616.38,615.84,0.60712063]
[1743028337901,0.861,616.38,615.85,0.263499]
[1743028340797,0.861,616.38,615.86,0.26349709]
[1743028341000,0.861,616.38,615.87,0.26349709]
[1743028341202,0.861,616.38,615.85,0.26349709]
[1743028341402,0.861,616.38,615.86,0.26349709]
[1743028341598,0.861,616.38,615.85,0.26349709]
[1743028341805,0.861,616.38,615.86,0.26349709]
[1743028342103,0.861,616.38,615.87,0.26349709]
[1743028342302,0.861,616.38,615.84,0.60712063]
[1743028342501,0.861,616.38,615.85,0.26349707]
[1743028344005,0.861,616.38,615.86,0.26349729]
[1743028344205,0.861,616.38,615.87,0.26349729]
[1743028344402,0.861,616.38,615.84,0.60712063]
[1743028344403,0.988,616.37,615.85,0.26349729]
[1743028345607,0.988,616.37,615.86,0.2634976]
[1743028345901,0.988,616.37,615.87,0.2634976]
[1743028346102,0.988,616.37,615.85,0.2634976]
[1743028346305,0.988,616.37,615.86,0.2634976]
[1743028346509,0.988,616.37,615.87,0.2634976]
[1743028346707,0.988,616.37,615.85,0.2634976]
[1743028346907,0.988,616.37,615.86,0.2634976]
[1743028347103,0.988,616.37,615.85,0.2634976]
[1743028347306,0.988,616.37,615.86,0.2634976]
[1743028347508,0.988,616.37,615.85,0.2634976]
[1743028347809,0.988,616.37,615.86,0.2634976]
[1743028348010,0.988,616.37,615.85,0.2634976]
[1743028348310,0.988,616.37,615.87,1.21484689]
[1743028348506,0.988,616.37,615.88,0.2634976]
[1743028349910,0.988,616.37,615.96,1.21484689]
[1743028350105,0.988,616.37,615.97,0.2634976]
[1743028351912,0.988,616.37,615.91,1.21484689]
[1743028352113,0.988,616.37,615.92,0.26350642]
[1743028353513,0.988,616.37,615.92,1.21484689]
[1743028353715,0.988,616.37,615.93,0.26350915]
[1743028355329,1.615,616.36,615.93,0.26350915]
[1743028356425,1.615,616.36,615.91,0.26350915]
[1743028356626,1.615,616.36,615.9,0.28235294]
[1743028356627,1.615,616.36,615.92,0.26350915]
[1743028356827,1.615,616.36,615.93,0.26351145]
[1743028357128,1.615,616.36,615.94,0.26351145]
[1743028357328,1.615,616.36,615.85,0.26351145]
[1743028357728,1.615,616.36,615.86,0.32474913]
[1743028357928,1.615,616.36,615.87,0.26351145]
[1743028358127,1.615,616.36,615.88,0.32473858]
[1743028358623,1.615,616.36,615.89,0.26346333]
[1743028358827,1.615,616.36,615.9,0.32472804]
[1743028359023,1.615,616.36,615.91,0.26346333]
[1743028359225,1.615,616.36,615.92,0.32471749]
[1743028359424,1.615,616.36,615.93,0.26346333]
[1743028359628,1.615,616.36,615.94,0.32470695]
[1743028359824,1.615,616.36,615.95,0.26346333]
[1743028360024,1.615,616.36,615.96,0.3246964]
[1743028360226,1.615,616.36,615.97,0.26345549]
[1743028360428,1.615,616.36,615.98,0.32468586]
[1743028360627,1.615,616.36,615.99,0.26345549]
[1743028363333,1.615,616.36,616.0,0.26345898]
[1743028363533,1.615,616.36,615.99,0.26345898]
[1743028363731,1.615,616.36,616.0,0.26345898]
[1743028363932,1.615,616.36,616.01,0.26345898]
[1743028364132,1.615,616.36,616.02,0.26345898]
[1743028364326,1.615,616.36,616.03,0.26345898]
[1743028364541,1.615,616.36,616.04,0.26345898]
[1743028364833,1.615,616.36,616.05,0.26345898]
[1743028365032,1.615,616.36,616.06,0.26345898]
[1743028365228,1.615,616.36,615.98,0.32468586]
[1743028365229,1.615,616.36,616.07,0.26345898]
[1743028365434,1.615,616.36,616.08,0.26345898]
[1743028365632,1.615,616.36,615.99,0.26345898]
[1743028365828,1.615,616.36,615.98,0.32468586]
[1743028365829,1.615,616.36,616.0,0.26345898]
[1743028366032,1.615,616.36,615.99,0.26345898]
[1743028366228,1.615,616.36,615.98,0.32468586]
[1743028366229,1.615,616.36,616.0,0.26345898]
[1743028366428,1.615,616.36,615.98,0.32468586]
[1743028366429,1.615,616.36,615.99,0.26345898]
[1743028368132,1.615,616.36,616.0,0.26347515]
[1743028368333,1.615,616.36,615.99,0.26347515]
[1743028368629,1.615,616.36,616.0,0.26347515]
[1743028368833,1.615,616.36,615.99,0.26347515]
[1743028369034,1.615,616.36,616.0,0.26347515]
[1743028369336,1.615,616.36,616.01,0.26347515]
[1743028369536,1.615,616.36,616.02,0.26347515]
[1743028369730,1.615,616.36,616.03,0.26347515]
[1743028369929,1.615,616.36,616.04,0.26347515]
[1743028370130,1.615,616.36,615.99,0.26347515]
[1743028370332,1.615,616.36,616.0,0.26347515]
[1743028370530,1.615,616.36,615.99,0.26347515]
[1743028370731,1.615,616.36,616.0,0.26347515]
[1743028370935,1.615,616.36,615.99,0.26347515]
[1743028371133,1.615,616.36,616.0,0.26347515]
[1743028371339,1.615,616.36,616.01,0.26347515]
[1743028371537,1.615,616.36,615.99,0.26347515]
[1743028371733,1.615,616.36,616.0,0.26347515]
[1743028371936,1.615,616.36,615.99,0.26347515]
[1743028372140,1.615,616.36,616.0,0.26347515]
[1743028372338,1.615,616.36,615.99,0.26347515]
[1743028372538,1.615,616.36,616.0,0.26347515]
[1743028372734,1.615,616.36,616.01,0.26347515]
[1743028372937,1.615,616.36,616.02,0.26346262]
[1743028373132,1.615,616.36,615.99,0.26346262]
[1743028373337,1.615,616.36,616.0,0.26346262]
[1743028373541,1.615,616.36,616.01,0.26346262]
[1743028373742,1.615,616.36,616.02,0.26346262]
[1743028373939,1.615,616.36,615.99,0.26346262]
[1743028374136,1.615,616.36,616.0,0.26346262]
[1743028374335,1.615,616.36,616.01,0.26346262]
[1743028374638,1.615,616.36,616.02,0.2634579]
[1743028374942,1.615,616.36,616.03,0.2634579]
[1743028375141,1.615,616.36,616.04,0.2634579]
[1743028375441,1.615,616.36,616.05,0.2634579]
[1743028375741,1.615,616.36,616.06,0.2634579]
[1743028375937,1.615,616.36,616.07,0.2634579]
[1743028376142,1.615,616.36,616.08,0.2634579]
[1743028376340,1.615,616.36,616.09,0.2634579]
[1743028376538,1.615,616.36,616.1,0.2634579]
[1743028376737,1.615,616.36,615.99,0.2634579]
[1743028376940,1.615,616.36,616.0,0.2634579]
[1743028377137,1.615,616.36,616.01,0.2634579]
[1743028377341,1.615,616.36,616.02,0.2634579]
[1743028377541,1.615,616.36,616.03,0.2634579]
[1743028377746,1.615,616.36,616.04,0.26345945]
[1743028378042,1.019,616.35,616.05,0.26345945]
[1743028378242,1.019,616.35,616.06,0.26345945]
[1743028378443,1.019,616.35,616.07,0.26345945]
[1743028378638,1.019,616.35,616.08,0.26345945]
[1743028378838,1.019,616.35,616.09,0.26345945]
[1743028379138,1.019,616.35,616.1,0.26345945]
[1743028379338,1.019,616.35,616.11,0.26345976]
[1743028379543,1.019,616.35,616.12,0.26345976]
[1743028379736,1.019,616.35,616.13,0.26345976]
[1743028379937,1.019,616.35,616.14,0.26345976]
[1743028380140,1.019,616.35,616.15,0.26345976]
[1743028380345,1.019,616.35,616.16,0.26345976]
[1743028380543,1.019,616.35,615.99,0.26345976]
[1743028380743,1.019,616.35,616.0,0.26345976]
[1743028380944,1.019,616.35,615.98,0.32468586]
[1743028380945,1.019,616.35,616.01,0.26345976]
[1743028381141,1.019,616.35,615.99,0.26345976]
[1743028381341,1.019,616.35,616.0,0.26345976]
[1743028381543,1.019,616.35,615.99,0.26345976]
[1743028381740,1.019,616.35,616.0,0.26345976]
[1743028381942,1.019,616.35,616.0,1.21484689]
[1743028383049,1.019,616.35,616.01,0.32467005]
[1743028383549,0.896,616.34,616.01,0.32467005]
[1743028386752,0.896,616.34,616.02,0.26334801]
[1743028386952,0.896,616.34,616.03,0.32465951]
[1743028390853,0.896,616.34,616.04,0.26335458]
[1743028391053,0.896,616.34,616.05,0.32464897]
[1743028391358,0.896,616.34,616.06,0.26335458]
[1743028391852,0.896,616.34,616.07,0.32463843]
[1743028392051,0.896,616.34,616.08,0.26335458]
[1743028392252,0.896,616.34,616.09,0.32462789]
[1743028392452,0.896,616.34,616.1,0.26335458]
[1743028392654,0.896,616.34,616.11,0.32461735]
[1743028392954,0.896,616.34,616.12,0.26335458]
[1743028393154,0.896,616.34,616.13,0.32460681]
[1743028393353,0.896,616.34,616.14,0.26335458]
[1743028395655,0.896,616.34,616.15,0.32459628]
[1743028395855,0.896,616.34,616.16,0.26335458]
[1743028396058,0.896,616.34,616.17,0.32458574]
[1743028396257,0.896,616.34,616.18,0.26335458]
[1743028396553,0.896,616.34,616.18,0.58793505]
[1743028396856,0.896,616.34,616.19,0.26335458]
[1743028397857,0.896,616.34,616.2,0.26333846]